bitfinex-derivatives/quotes_SOLF0:USTF0_20220101
["timestamp","ask_amount","ask_price","bid_price","bid_amount"]
[1641003508039,12.31343143,173.01,172.93,12.31343143]
[1641003508239,15.31343143,173.01,172.93,12.31343143]
[1641003508440,12.31343143,173.01,172.93,12.31343143]
[1641003509042,12.31343143,173.01,172.91,5.21464175]
[1641003509240,39.97822143,173.01,172.91,1.21464175]
[1641003510242,39.97822143,173.01,172.92,12.31343143]
[1641003510243,27.66479,173.01,172.92,12.31343143]
[1641003510443,27.66479,173.01,172.93,29.3578]
[1641003510944,27.66479,173.01,172.94,1.21464175]
[1641003512447,39.97822143,173.01,172.94,1.21464175]
[1641003516048,42.97822143,173.01,172.94,1.21464175]
[1641003516448,39.97822143,173.01,172.94,1.21464175]
[1641003517249,12.31343143,173.0,172.91,1.21464175]
[1641003517448,32.0618,172.99,172.91,1.21464175]
[1641003519752,44.37523143,172.99,172.91,1.21464175]
[1641003521359,12.31343143,172.98,172.91,1.21464175]
[1641003523659,12.31343143,172.98,172.91,19.51027902]
[1641003524463,12.31343143,172.98,172.91,1.21464175]
[1641003524662,3.0,172.97,172.91,1.21464175]
[1641003524863,15.31343143,172.98,172.91,1.21464175]
[1641003525063,12.31343143,172.96,172.91,1.21464175]
[1641003525765,27.66479,172.93,172.91,1.21464175]
[1641003526064,27.66479,172.93,172.87,13.52807318]
[1641003528768,27.66479,172.93,172.87,1.21464175]
[1641003528969,22.5319019,172.93,172.87,1.21464175]
[1641003529369,29.7262,172.95,172.87,1.21464175]
[1641003531471,27.66479,172.96,172.87,1.21464175]
[1641003531670,27.66479,172.96,172.87,28.87943175]
[1641003531870,27.66479,172.96,172.87,41.19286318]
[1641003532670,27.66479,172.96,172.88,1.21464175]
[1641003533975,30.4955,172.98,172.9,4.0]
[1641003534574,27.66479,172.99,172.91,1.21464175]
[1641003534774,12.31343143,173.03,172.91,1.21464175]
[1641003535275,31.3634,173.04,172.91,1.21464175]
[1641003535776,27.66479,173.03,172.94,27.66479]
[1641003535976,27.66479,173.03,172.95,30.2029]
[1641003538278,12.31343143,173.01,172.96,1.21681964]
[1641003539080,12.31343143,173.02,172.96,1.21681964]
[1641003541584,12.31343143,173.02,172.96,7.50081964]
[1641003541782,12.31343143,173.02,172.97,4.0]
[1641003542182,43.67683143,173.04,172.97,5.21681964]
[1641003542384,12.31343143,173.04,172.97,1.21681964]
[1641003543784,44.0418964,173.07,172.97,1.21681964]
[1641003543785,12.31343143,173.02,172.97,1.21681964]
[1641003544985,39.97822143,173.03,172.97,1.21681964]
[1641003545987,12.31343143,173.03,172.97,1.21681964]
[1641003546486,12.31343143,173.04,172.97,1.21681964]
[1641003547586,30.6075,173.07,172.96,21.744]
[1641003547786,30.6075,173.07,172.99,27.66479]
[1641003548786,30.6075,173.07,172.99,31.66479]
[1641003549487,27.66479,173.08,172.99,31.66479]
[1641003550090,27.66479,173.08,173.0,31.8542]
[1641003550289,27.66479,173.08,173.0,37.8432]
[1641003552490,27.66479,173.08,173.0,5.989]
[1641003555293,27.66479,173.08,172.99,30.2347]
[1641003556596,27.66479,173.08,172.99,34.2347]
[1641003557697,32.4151,173.1,172.99,34.2347]
[1641003557899,32.4151,173.1,173.01,27.66479]
[1641003558800,12.31343143,173.05,173.01,27.66479]
[1641003563605,3.0,173.05,173.02,1.21692374]
[1641003564105,27.66479,173.04,173.02,1.21692374]
[1641003564308,27.66479,173.04,172.96,39.8793]
[1641003565111,12.31243579,173.02,172.97,1.21684195]
[1641003566414,12.31243579,173.02,172.96,39.8793]
[1641003566615,3.0,173.02,172.96,31.4193]
[1641003566814,3.0,173.02,172.91,20.75343143]
[1641003567014,3.0,173.0,172.91,20.75343143]
[1641003567215,3.0,172.99,172.89,12.31343143]
[1641003568116,31.753719,172.96,172.9,4.088929]
[1641003571523,31.753719,172.96,172.91,4.088929]
[1641003572125,31.753719,172.96,172.9,4.088929]
[1641003573327,4.088929,172.95,172.9,4.088929]
[1641003574126,31.753719,172.96,172.91,4.088929]
[1641003575225,31.753719,172.96,172.9,4.088929]
[1641003576625,31.753719,172.96,172.89,1.21189572]
[1641003576626,4.088929,172.94,172.89,4.088929]
[1641003577428,4.088929,172.91,172.87,13.52532715]
[1641003579328,4.088929,172.92,172.88,12.31343143]
[1641003580030,31.753719,172.93,172.89,12.31343143]
[1641003580231,31.753719,172.93,172.89,17.17243143]
[1641003581133,31.753719,172.93,172.9,1.21189572]
[1641003582134,4.088929,172.93,172.9,1.21189572]
[1641003582934,12.31243579,172.97,172.9,1.21189572]
[1641003582935,4.088929,172.97,172.9,1.21189572]
[1641003583434,4.088929,172.96,172.92,12.31453613]
[1641003584235,4.088929,172.97,172.92,39.97932613]
[1641003584435,4.088929,172.97,172.93,12.31453613]
[1641003584837,4.088929,172.97,172.94,4.0]
[1641003585034,2.9e-05,172.97,172.94,4.0]
[1641003585435,2.9e-05,172.97,172.94,7.0]
[1641003585635,2.9e-05,172.97,172.94,4.0]
[1641003585836,12.31243579,173.05,172.95,1.21189572]
[1641003586035,12.31243579,173.05,172.95,31.21259572]
[1641003586236,12.31243579,173.05,172.97,27.66479]
[1641003586736,12.31243579,173.04,172.97,27.66479]
[1641003587336,12.31243579,173.04,172.96,19.50430777]
[1641003587537,12.31243579,173.04,172.96,13.52261569]
[1641003587839,12.31243579,173.04,172.98,1.21189572]
[1641003588243,12.31243579,173.03,172.96,1.21189572]
[1641003589542,12.29665004,173.04,172.96,1.21189572]
[1641003592444,12.29665004,173.03,172.96,1.21189572]
[1641003592944,12.29665004,173.03,172.95,57.66549]
[1641003594047,12.29665004,173.05,172.96,1.2156379]
[1641003595649,12.29665004,173.04,172.96,1.2156379]
[1641003596852,12.29665004,173.04,172.95,57.66549]
[1641003597050,12.29665004,173.03,172.95,69.97620997]
[1641003597253,3.0,173.02,172.95,69.97620997]
[1641003597453,3.0,173.01,172.95,42.31141997]
[1641003597652,12.29665004,173.02,172.96,1.21709598]
[1641003598652,27.66479,173.01,172.96,1.21709598]
[1641003598852,27.66479,173.01,172.92,70.64354215]
[1641003599253,12.31439554,173.0,172.92,70.64354215]
[1641003600155,12.31439554,173.0,172.93,1.21703218]
[1641003601258,12.31439554,173.0,172.93,5.69103218]
[1641003601859,27.66479,173.01,172.94,1.21703218]
[1641003602660,27.66479,173.01,172.93,22.76666325]
[1641003602860,12.31436057,173.0,172.93,26.76666325]
[1641003603462,12.31165661,173.05,172.97,12.31071997]
[1641003604764,12.31165661,173.05,172.97,39.97550997]
[1641003604968,39.97546267,173.06,172.98,12.31071997]
[1641003605869,39.97546267,173.06,172.98,19.50978673]
[1641003606668,42.97546267,173.06,172.98,19.50978673]
[1641003607471,12.31107331,173.05,172.98,1.21712348]
[1641003608371,27.66479,173.06,172.98,1.21712348]
[1641003608773,27.66479,173.03,172.98,1.21712348]
[1641003608972,39.97593332,173.03,172.98,1.21712348]
[1641003610273,27.66479,173.03,172.96,12.31071997]
[1641003610475,12.31238927,173.02,172.94,12.31071997]
[1641003611378,12.31238927,173.02,172.94,19.50950302]
[1641003611575,15.31238927,173.02,172.94,19.50950302]
[1641003612177,3.0,173.01,172.94,19.50950302]
[1641003612380,15.31238927,173.02,172.94,19.50950302]
[1641003612779,27.66479,172.97,172.94,19.50950302]
[1641003612978,27.66479,172.97,172.94,13.52781903]
[1641003613179,27.66479,172.97,172.94,1.21709906]
[1641003613777,30.66479,172.97,172.92,13.52777853]
[1641003613979,22.51741316,172.97,172.92,13.52777853]
[1641003614179,22.51741316,172.97,172.91,19.5096245]
[1641003618084,22.51741316,172.97,172.91,13.52777853]
[1641003618283,22.51741316,172.97,172.88,30.8518]
[1641003618284,12.31435279,172.96,172.89,1.21705856]
[1641003618783,27.66479,172.94,172.89,1.21705856]
[1641003619385,27.66479,172.94,172.89,19.51001841]
[1641003620086,27.66479,172.94,172.89,1.21705856]
[1641003622289,12.31435279,172.96,172.89,1.21705856]
[1641003623090,22.51741316,172.97,172.9,12.31071997]
[1641003624594,22.51741316,172.97,172.91,12.31071997]
[1641003624790,22.51741316,172.97,172.91,18.73071997]
[1641003624992,12.31435279,172.99,172.91,18.73071997]
[1641003625892,12.31435279,172.99,172.91,22.73071997]
[1641003626293,31.2418,173.01,172.94,12.31071997]
[1641003626792,27.66479,173.0,172.94,12.31071997]
[1641003628594,27.66479,173.0,172.95,12.31071997]
[1641003629695,30.66479,173.0,172.95,12.31071997]
[1641003629896,27.66479,173.0,172.95,12.31071997]
[1641003630498,12.31435279,172.99,172.94,1.21705856]
[1641003631098,39.97914279,173.0,172.92,19.50897031]
[1641003631699,39.97914279,173.0,172.92,13.52777853]
[1641003631903,12.31435279,172.99,172.92,1.21705856]
[1641003632400,12.31435279,172.98,172.92,1.21705856]
[1641003635001,27.66479,172.94,172.9,1.21705856]
[1641003639107,12.31435279,172.96,172.9,1.21705856]
[1641003639809,31.8891,172.99,172.93,12.31071997]
[1641003640009,27.66479,173.0,172.93,12.31071997]
[1641003642912,39.97914279,173.0,172.93,12.31071997]
[1641003643516,27.66479,173.0,172.93,12.31071997]
[1641003644513,39.97914279,173.0,172.93,12.31071997]
[1641003645613,4.10487246,172.97,172.96,4.10487246]
[1641003647216,39.97914279,173.0,172.96,4.10487246]
[1641003647518,12.31435279,172.99,172.95,4.10487246]
[1641003649920,15.31435279,172.99,172.95,4.10487246]
[1641003650119,12.31435279,172.99,172.95,4.10487246]
[1641003650320,3.0,172.98,172.95,4.10487246]
[1641003651121,27.66479,172.96,172.95,4.10487246]
[1641003651921,27.66479,172.96,172.91,4.10487246]
[1641003652523,12.31720943,172.95,172.91,4.10487246]
[1641003653123,4.10558811,172.92,172.91,4.10487246]
[1641003654124,12.31720943,172.95,172.91,4.10487246]
[1641003654925,27.66479,172.96,172.89,35.30317246]
[1641003655926,4.0817646,172.97,172.89,35.30317246]
[1641003656326,31.8491,172.98,172.92,4.10487246]
[1641003656530,34.7465546,173.0,172.92,4.10487246]
[1641003657228,4.0817646,172.99,172.91,4.10487246]
[1641003658829,4.0817646,172.95,172.91,12.31071997]
[1641003659130,4.0817646,172.95,172.91,39.97550997]
[1641003660334,4.0817646,172.95,172.92,1.20962807]
[1641003662833,4.0817646,172.94,172.92,1.20962807]
[1641003664137,3.0,172.95,172.92,1.20962807]
[1641003664336,3.0,172.94,172.91,16.36289]
[1641003664636,3.0,172.92,172.88,12.31071997]
[1641003664835,3.0,172.89,172.84,41.35096418]
[1641003665037,3.0,172.85,172.84,8.44]
[1641003665236,30.66479,172.85,172.81,32.91096418]
[1641003665435,27.66479,172.85,172.81,32.91096418]
[1641003666943,4.1078905,172.83,172.77,5.98007699]
[1641003668340,27.66479,172.85,172.77,5.98007699]
[1641003668341,4.1078905,172.82,172.77,5.98007699]
[1641003669845,4.1078905,172.84,172.77,5.98007699]
[1641003671249,31.7726805,172.85,172.78,32.91096418]
[1641003671651,4.1078905,172.85,172.78,32.91096418]
[1641003671851,31.7726805,172.86,172.79,32.91096418]
[1641003672850,31.7726805,172.86,172.78,38.89104117]
[1641003673857,34.7726805,172.86,172.78,38.89104117]
[1641003674555,4.1078905,172.85,172.77,38.89104117]
[1641003675156,4.10782042,172.84,172.77,38.89104117]
[1641003675657,4.10781202,172.85,172.77,38.89104117]
[1641003676459,27.66479,172.86,172.77,38.89104117]
[1641003676758,30.66479,172.86,172.77,38.89104117]
[1641003677359,58.32958,172.86,172.77,43.56104117]
[1641003677560,4.10797657,172.82,172.77,10.65007699]
[1641003678364,4.10795409,172.83,172.77,10.65007699]
[1641003679369,55.32958,172.86,172.77,10.65007699]
[1641003679768,4.10795545,172.83,172.77,10.65007699]
[1641003680568,55.32958,172.86,172.77,10.65007699]
[1641003681169,4.10795263,172.83,172.77,10.65007699]
[1641003682173,55.32958,172.86,172.77,10.65007699]
[1641003682869,4.10794622,172.83,172.77,10.65007699]
[1641003683371,31.77273622,172.83,172.77,10.65007699]
[1641003683670,27.66479,172.83,172.77,10.65007699]
[1641003684471,31.77273781,172.83,172.77,10.65007699]
[1641003685372,27.66479,172.83,172.77,10.65007699]
[1641003686473,27.66479,172.83,172.77,5.98007699]
[1641003686877,31.77293439,172.83,172.77,5.98007699]
[1641003687682,27.66479,172.83,172.77,5.98007699]
[1641003688179,31.77297951,172.83,172.77,5.98007699]
[1641003688780,27.66479,172.83,172.77,5.98007699]
[1641003689482,31.77293964,172.83,172.77,5.98007699]
[1641003690784,27.66479,172.83,172.77,5.98007699]
[1641003691388,31.7729145,172.83,172.78,7.0]
[1641003691786,27.66479,172.86,172.78,7.0]
[1641003691986,4.10782955,172.84,172.78,7.0]
[1641003692587,27.66479,172.86,172.78,7.0]
[1641003692989,27.66479,172.86,172.77,5.98007699]
[1641003693488,27.66479,172.86,172.84,4.10749226]
[1641003694290,31.8268,172.89,172.79,5.98007699]
[1641003695191,31.8268,172.89,172.86,4.10714458]
[1641003695391,42.98622374,172.9,172.86,4.10714458]
[1641003695791,42.98622374,172.9,172.82,12.32143374]
[1641003696391,39.98622374,172.9,172.82,12.32143374]
[1641003696792,39.98622374,172.9,172.86,4.1071231]
[1641003697294,39.98622374,172.9,172.82,12.32143374]
[1641003697894,39.98622374,172.9,172.86,4.1071155]
[1641003698395,39.98622374,172.9,172.86,8.7341155]
[1641003698594,39.98622374,172.9,172.86,4.627]
[1641003698796,12.32143374,172.9,172.86,4.627]
[1641003699196,12.32143374,172.91,172.87,4.10691164]
[1641003700198,12.32143374,172.91,172.86,4.627]
[1641003700604,12.32143374,172.91,172.88,7.0]
[1641003700800,60.57575418,172.95,172.89,3.0]
[1641003701002,32.91096418,173.0,172.89,3.0]
[1641003701202,32.91096418,173.0,172.91,7.0]
[1641003701806,27.66479,172.99,172.91,7.0]
[1641003702104,27.66479,172.99,172.95,4.10505092]
[1641003702603,27.66479,172.99,172.95,10.11805092]
[1641003703104,27.66479,172.99,172.95,6.013]
[1641003703304,27.66479,172.99,172.96,4.10495436]
[1641003704004,27.66479,172.99,172.95,6.013]
[1641003704704,27.66479,172.99,172.96,5.32073896]
[1641003705605,27.66479,172.99,172.96,4.10488185]
[1641003705805,27.66479,172.99,172.95,6.013]
[1641003706506,27.66479,172.99,172.96,5.32067526]
[1641003707208,27.66479,172.99,172.95,6.013]
[1641003707410,27.66479,172.99,172.95,10.11780674]
[1641003708111,27.66479,172.99,172.95,6.013]
[1641003708311,27.66479,172.99,172.91,36.9994]
[1641003708913,27.66479,172.99,172.95,4.1047979]
[1641003709511,27.66479,172.99,172.92,1.2166356]
[1641003710212,27.66479,172.99,172.95,4.10484914]
[1641003710812,27.66479,172.99,172.91,45.6394]
[1641003711614,27.66479,172.99,172.91,42.6394]
[1641003711816,27.66479,172.99,172.95,4.10480562]
[1641003712419,27.66479,172.99,172.92,7.19747091]
[1641003713218,27.66479,172.99,172.95,4.10466983]
[1641003713916,3.0,172.97,172.92,7.19747091]
[1641003714115,27.66479,172.99,172.96,4.10462975]
[1641003714317,3.0,172.97,172.96,2.975e-05]
[1641003714817,3.0,172.97,172.92,7.19747091]
[1641003715020,3.0,172.95,172.89,1.21663483]
[1641003715516,3.0,172.95,172.85,14.56083608]
[1641003715819,27.66479,172.9,172.86,1.21596482]
[1641003716618,21.09456561,172.9,172.86,1.21596482]
[1641003718220,27.66479,172.92,172.86,1.21596482]
[1641003720424,30.4518,172.96,172.86,1.21596482]
[1641003720926,30.4518,172.96,172.84,45.646929]
[1641003721126,30.4518,172.96,172.84,42.646929]
[1641003721625,30.4518,172.96,172.85,1.21596482]
[1641003721826,27.66479,172.95,172.85,1.21596482]
[1641003722226,27.66479,172.95,172.85,7.1968009]
[1641003731344,27.66479,172.95,172.85,19.48949479]
[1641003732145,27.66479,172.95,172.86,12.29269389]
[1641003732349,27.66479,172.95,172.86,44.62519389]
[1641003732746,27.66479,172.95,172.86,32.3325]
[1641003733546,3.0,172.94,172.86,32.3325]
[1641003734150,27.66479,172.89,172.87,1.21596482]
[1641003734449,3.0,172.94,172.87,1.21596482]
[1641003734850,30.66479,172.95,172.87,1.21596482]
[1641003735052,12.29269389,172.93,172.83,30.0297]
[1641003735951,12.29269389,172.93,172.84,1.21596482]
[1641003736151,27.66479,172.89,172.84,1.21596482]
[1641003736351,30.66479,172.89,172.84,1.21596482]
[1641003736552,3.0,172.88,172.84,1.21596482]
[1641003736951,30.66479,172.89,172.84,1.21596482]
[1641003737152,27.66479,172.89,172.84,1.21596482]
[1641003737351,3.0,172.88,172.8,13.50865871]
[1641003738054,27.66479,172.84,172.8,13.50865871]
[1641003738255,27.66479,172.84,172.79,12.29269389]
[1641003739053,27.66479,172.84,172.78,19.4759763]
[1641003744859,27.66479,172.84,172.78,1.21596482]
[1641003747868,30.66479,172.84,172.78,1.21596482]
[1641003748068,27.66479,172.81,172.78,1.21596482]
[1641003748872,3.0,172.8,172.7,32.3407]
[1641003749070,3.0,172.8,172.69,39.95748389]
[1641003749071,3.0,172.8,172.69,70.33898389]
[1641003749271,3.0,172.8,172.69,42.67419389]
[1641003749771,3.0,172.8,172.7,1.20202323]
[1641003750271,27.66479,172.76,172.7,1.20202323]
[1641003751472,27.66479,172.76,172.7,4.20202323]
[1641003751673,27.66479,172.81,172.7,1.20202323]
[1641003752076,27.66479,172.81,172.71,1.20202323]
[1641003752774,27.66479,172.81,172.7,1.20202323]
[1641003754180,27.66479,172.78,172.7,1.20202323]
[1641003754377,27.66479,172.78,172.75,12.29269389]
[1641003756179,27.66479,172.78,172.73,12.29269389]
[1641003757084,27.66479,172.78,172.74,12.29269389]
[1641003759186,27.66479,172.81,172.74,12.29269389]
[1641003759384,12.29269389,172.82,172.74,12.29269389]
[1641003760186,12.29269389,172.85,172.77,12.29269389]
[1641003760386,27.66479,172.82,172.77,12.29269389]
[1641003761086,27.66479,172.82,172.75,19.47486434]
[1641003762888,27.66479,172.82,172.75,12.29269389]
[1641003763788,30.66479,172.82,172.75,12.29269389]
[1641003763992,3.0,172.81,172.75,12.29269389]
[1641003764191,27.66479,172.78,172.75,12.29269389]
[1641003764591,27.66479,172.78,172.72,12.29269389]
[1641003768093,27.66479,172.78,172.73,12.29269389]
[1641003768294,42.44649389,172.81,172.73,12.29269389]
[1641003768893,42.44649389,172.81,172.77,12.29269389]
[1641003768894,30.1538,172.81,172.77,12.29269389]
[1641003769096,27.66479,172.82,172.77,12.29269389]
[1641003769595,27.66479,172.82,172.75,12.29269389]
[1641003770495,27.66479,172.78,172.75,12.29269389]
[1641003771497,27.66479,172.78,172.76,12.29269389]
[1641003773496,27.66479,172.78,172.75,12.29269389]
[1641003774696,27.66479,172.78,172.74,12.29269389]
[1641003775599,27.66479,172.78,172.74,4.09434573]
[1641003775998,27.66479,172.78,172.75,4.09434573]
[1641003776900,22.60255712,172.78,172.75,4.09434573]
[1641003777103,22.60255712,172.78,172.72,1.20202323]
[1641003778001,22.60255712,172.78,172.74,4.09428438]
[1641003779401,12.29269389,172.81,172.77,4.09428438]
[1641003780702,44.56929389,172.84,172.8,4.09428438]
[1641003780907,12.29269389,172.84,172.8,4.09428438]
[1641003783009,39.95748389,172.86,172.82,4.09428438]
[1641003783213,12.29269389,172.86,172.82,4.09428438]
[1641003784609,12.29269389,172.86,172.81,27.66479]
[1641003784810,12.29269389,172.9,172.82,12.29269389]
[1641003785612,12.29269389,172.92,172.88,4.10699556]
[1641003786911,12.29269389,172.91,172.87,4.10699556]
[1641003787712,39.95748389,172.93,172.89,4.10699556]
[1641003789213,12.29269389,172.92,172.88,4.10699556]
[1641003790414,12.29269389,172.91,172.87,4.10699556]
[1641003794119,12.29269389,172.89,172.85,4.10699556]
[1641003796925,39.95748389,172.89,172.85,4.10699556]
[1641003797825,27.66479,172.89,172.86,4.10699556]
[1641003798924,55.32958,172.89,172.86,4.10699556]
[1641003799324,55.32958,172.89,172.85,4.10699556]
[1641003799325,67.62227389,172.89,172.85,4.10699556]
[1641003801131,27.66479,172.86,172.85,4.10699556]
[1641003801829,27.66479,172.86,172.8,35.82129556]
[1641003805432,27.66479,172.86,172.84,4.10699556]
[1641003805832,12.29269389,172.88,172.84,4.10699556]
[1641003806732,12.29269389,172.91,172.87,4.10699556]
[1641003807132,27.66479,172.88,172.87,4.10699556]
[1641003807932,39.95748389,172.91,172.87,4.10699556]
[1641003810440,3.0,172.89,172.87,4.10699556]
[1641003810841,15.29269389,172.9,172.87,4.10699556]
[1641003811040,12.29269389,172.9,172.87,4.10699556]
[1641003811245,39.95748389,172.88,172.84,4.10699556]
[1641003814351,3.0,172.85,172.81,1.21511464]
[1641003815349,27.66479,172.82,172.81,1.21511464]
[1641003815548,27.66479,172.82,172.76,1.21511464]
[1641003816550,27.66479,172.82,172.75,19.48633947]
[1641003817250,27.66479,172.82,172.77,12.29269389]
[1641003818553,12.29269389,172.81,172.75,1.21511464]
[1641003818754,16.57469389,172.81,172.75,1.21511464]
[1641003819355,27.66479,172.77,172.75,1.21511464]
[1641003820757,12.29269389,172.8,172.75,1.21511464]
[1641003820958,12.29269389,172.81,172.74,12.29269389]
[1641003821857,67.62227389,172.82,172.74,12.29269389]
[1641003822358,12.29269389,172.81,172.74,12.29269389]
[1641003824259,12.29269389,172.81,172.73,12.29269389]
[1641003825360,27.66479,172.79,172.73,12.29269389]
[1641003828062,27.66479,172.79,172.73,3.0]
[1641003828263,42.44169389,172.87,172.73,3.0]
[1641003828464,42.44169389,172.87,172.74,32.4248]
[1641003828864,33.149,172.87,172.74,33.63991464]
[1641003829463,27.66479,172.81,172.74,33.63991464]
[1641003829664,27.66479,172.81,172.75,1.21511464]
[1641003831668,27.66479,172.81,172.76,12.29269389]
[1641003834170,27.66479,172.81,172.75,19.48631153]
[1641003834870,27.66479,172.81,172.76,12.29269389]
[1641003835770,27.66479,172.81,172.75,19.48631153]
[1641003836373,27.66479,172.81,172.75,13.50780853]
[1641003836574,27.66479,172.81,172.75,1.21511464]
[1641003836773,12.29269389,172.82,172.75,1.21511464]
[1641003837172,12.29269389,172.83,172.75,19.48629827]
[1641003837571,27.66479,172.79,172.75,19.48629827]
[1641003837771,12.32665165,172.82,172.75,19.48629827]
[1641003838972,12.32665165,172.82,172.75,22.48629827]
[1641003839173,12.32614144,172.83,172.75,22.48629827]
[1641003839773,27.66479,172.84,172.77,12.29269389]
[1641003841878,39.98998623,172.84,172.77,12.29269389]
[1641003842275,27.66479,172.84,172.77,12.29269389]
[1641003850282,27.66479,172.84,172.78,12.29269389]
[1641003850485,27.66479,172.84,172.78,22.38969389]
[1641003850684,27.66479,172.84,172.8,3.0]
[1641003850884,12.32478098,172.86,172.8,3.0]
[1641003851287,12.32478098,172.86,172.81,3.0]
[1641003851485,32.91096418,172.9,172.81,3.0]
[1641003851685,12.32453597,172.87,172.81,3.0]
[1641003851884,12.32453597,172.87,172.81,27.66479]
[1641003852084,12.32453597,172.87,172.79,44.35800853]
[1641003852287,27.66479,172.9,172.83,12.29269389]
[1641003853184,12.32453597,172.89,172.81,12.29269389]
[1641003853786,12.32453597,172.89,172.82,12.29269389]
[1641003855286,12.32453597,172.89,172.81,12.29269389]
[1641003857590,12.32453597,172.88,172.8,19.48629827]
[1641003859194,12.32453597,172.87,172.8,1.21511464]
[1641003860595,42.29002149,172.89,172.8,19.48584596]
[1641003860596,12.32453597,172.88,172.8,19.48584596]
[1641003863512,12.32453597,172.88,172.8,13.50780853]
[1641003863704,12.32453597,172.86,172.8,1.21511464]
[1641003864203,27.66479,172.85,172.8,1.21511464]
[1641003864400,39.98932597,172.85,172.8,1.21511464]
[1641003865402,27.66479,172.85,172.8,1.21511464]
[1641003867002,27.66479,172.85,172.79,12.29269389]
[1641003867606,27.66479,172.85,172.78,12.29269389]
[1641003868405,27.66479,172.85,172.79,12.29269389]
[1641003868903,27.66479,172.85,172.78,12.29269389]
[1641003873313,12.32453597,172.83,172.77,1.21511464]
[1641003873913,12.32453597,172.84,172.77,1.21511464]
[1641003875014,12.32453597,172.83,172.79,4.10875733]
[1641003876519,12.32453597,172.84,172.8,4.10875733]
[1641003877619,39.98932597,172.85,172.81,4.10875733]
[1641003878818,39.98932597,172.85,172.8,4.10875733]
[1641003879619,12.32453597,172.84,172.8,4.10875733]
[1641003880719,39.98932597,172.85,172.81,4.10875733]
[1641003881322,42.98932597,172.85,172.81,4.10875733]
[1641003882421,12.32453597,172.82,172.78,4.10875733]
[1641003882819,3.0,172.81,172.78,4.10875733]
[1641003883022,55.32958,172.79,172.77,1.21511464]
[1641003883222,55.32958,172.79,172.77,5.32461769]
[1641003883920,67.65411597,172.79,172.71,19.48605552]
[1641003885223,27.66479,172.74,172.71,19.48605552]
[1641003885422,30.66479,172.74,172.71,19.48605552]
[1641003885625,3.0,172.73,172.71,19.48605552]
[1641003885924,30.66479,172.74,172.67,32.91096418]
[1641003886125,30.66479,172.74,172.68,12.33166116]
[1641003886525,3.0,172.73,172.68,12.33166116]
[1641003887126,27.66479,172.69,172.68,12.33166116]
[1641003887528,27.66479,172.69,172.64,32.91096418]
[1641003887728,27.66479,172.69,172.62,41.49096418]
[1641003887929,27.66479,172.69,172.62,51.29663419]
[1641003888231,27.66479,172.69,172.62,42.71663419]
[1641003888629,27.66479,172.69,172.61,70.23575788]
[1641003889029,27.66479,172.69,172.61,64.45106418]
[1641003889429,27.66479,172.69,172.61,31.5401]
[1641003891130,27.66479,172.66,172.61,31.5401]
[1641003891332,27.66479,172.66,172.6,42.72076273]
[1641003891534,30.66479,172.66,172.6,42.72076273]
[1641003892331,30.66479,172.66,172.6,32.91096418]
[1641003892531,30.66479,172.66,172.53,8.74]
[1641003893032,27.66479,172.6,172.53,8.74]
[1641003893231,27.66479,172.6,172.52,31.8132]
[1641003893433,27.66479,172.6,172.52,40.6132]
[1641003894840,27.66479,172.6,172.54,7.0]
[1641003895034,27.66479,172.66,172.54,34.66479]
[1641003895937,27.66479,172.66,172.55,3.0]
[1641003898237,27.66479,172.66,172.54,30.66479]
[1641003898639,27.66479,172.66,172.57,32.91096418]
[1641003899038,27.66479,172.66,172.57,60.57575418]
[1641003899240,27.66479,172.66,172.57,65.54075418]
[1641003901041,27.66479,172.66,172.57,37.87596418]
[1641003901443,3.0,172.65,172.57,4.965]
[1641003901943,27.66479,172.66,172.57,4.965]
[1641003902142,3.0,172.65,172.57,4.965]
[1641003903043,27.66479,172.63,172.57,4.965]
[1641003904443,27.66479,172.63,172.56,32.91096418]
[1641003906747,3.0,172.62,172.56,32.91096418]
[1641003906944,27.66479,172.63,172.56,32.91096418]
[1641003907146,27.66479,172.63,172.55,5.97618115]
[1641003907147,27.66479,172.6,172.55,38.88714533]
[1641003910052,32.3279,172.69,172.55,38.88714533]
[1641003910455,3.0,172.68,172.55,5.97618115]
[1641003911054,27.66479,172.65,172.55,5.97618115]
[1641003911255,27.66479,172.65,172.56,32.91096418]
[1641003911954,27.66479,172.65,172.55,38.88714533]
[1641003912154,22.69510442,172.65,172.55,38.88714533]
[1641003912354,22.69510442,172.65,172.56,32.91096418]
[1641003913155,22.69510442,172.65,172.55,38.88714533]